bitfinex/quotes_BTCUSD_20251007
["timestamp","ask_amount","ask_price","bid_price","bid_amount"]
[1759845982590,0.21820916,123390.0,123380.0,0.74173981]
[1759845982846,0.05612148,123390.0,123380.0,0.74173981]
[1759845982975,0.21820916,123390.0,123380.0,0.65749981]
[1759845983170,0.21820916,123390.0,123380.0,0.74169981]
[1759845983421,0.05612148,123390.0,123380.0,0.74169981]
[1759845983631,0.21820916,123390.0,123380.0,0.08537981]
[1759845984235,0.21820916,123390.0,123380.0,0.74165981]
[1759845984922,0.05612148,123390.0,123380.0,0.74165981]
[1759845985152,0.05612148,123390.0,123380.0,2.50673771]
[1759845985363,0.01612148,123390.0,123380.0,2.50673771]
[1759845986225,0.01612148,123390.0,123380.0,2.66883853]
[1759845986434,0.06536749,123420.0,123390.0,0.0301519]
[1759845986640,0.22741622,123420.0,123410.0,0.0842]
[1759845986842,0.22741622,123420.0,123410.0,0.08485447]
[1759845987048,0.16204873,123420.0,123410.0,0.08485447]
[1759845987261,0.16203581,123430.0,123410.0,0.08377653]
[1759845987465,0.16203581,123430.0,123410.0,0.73944206]
[1759845987466,0.17281736,123430.0,123410.0,0.73944206]
[1759845988017,0.16215736,123430.0,123410.0,0.73944206]
[1759845988227,0.17281736,123430.0,123410.0,0.73944206]
[1759845989207,0.16315736,123430.0,123410.0,0.74044206]
[1759845989437,0.17381736,123430.0,123410.0,0.08412206]
[1759845989662,0.16204829,123420.0,123410.0,0.58412206]
[1759845989880,0.19033829,123420.0,123410.0,0.81920206]
[1759845990100,0.17255829,123420.0,123410.0,0.08412206]
[1759845990321,0.19033829,123420.0,123410.0,0.74028206]
[1759845990537,0.16204829,123420.0,123410.0,0.74028206]
[1759845990762,0.20670736,123430.0,123410.0,0.74028206]
[1759845990977,0.16304829,123420.0,123410.0,0.73928206]
[1759845991225,0.17355829,123420.0,123410.0,0.73928206]
[1759845991467,0.002,123420.0,123410.0,0.74028206]
[1759845991685,0.001,123420.0,123410.0,0.74028206]
[1759845992289,0.001,123420.0,123410.0,2.58334538]
[1759845992526,0.001,123420.0,123410.0,2.42128396]
[1759845992771,0.001,123420.0,123410.0,0.92193296]
[1759845992985,0.16304829,123420.0,123410.0,0.52462106]
[1759845993208,0.16304829,123420.0,123410.0,1.21392253]
[1759845993445,0.16304829,123420.0,123410.0,0.65673653]
[1759845993664,0.16404829,123420.0,123410.0,0.87392153]
[1759845993879,0.002,123420.0,123410.0,1.10222553]
[1759845994100,0.002,123420.0,123410.0,1.13237743]
[1759845995199,0.002,123420.0,123410.0,0.47629743]
[1759845995374,0.002,123420.0,123410.0,1.46913743]
[1759845996176,0.002,123420.0,123410.0,1.38493743]
[1759845996386,0.002,123420.0,123410.0,1.33291043]
[1759845996589,0.16404829,123420.0,123410.0,0.24521853]
[1759845996780,0.16404829,123420.0,123410.0,0.74089653]
[1759845996990,0.16404829,123420.0,123410.0,0.90054653]
[1759845997191,0.002,123420.0,123410.0,0.90054653]
[1759845997619,0.052,123420.0,123410.0,0.93069843]
[1759845998030,0.052,123420.0,123410.0,1.27069843]
[1759845998817,0.052,123420.0,123410.0,1.60745843]
[1759845999026,0.052,123420.0,123410.0,1.37237843]
[1759845999245,0.052,123420.0,123410.0,1.52325843]
[1759845999463,0.052,123420.0,123410.0,1.60745843]
[1759846000355,0.052,123420.0,123410.0,1.76951985]
[1759846000785,0.052,123420.0,123410.0,1.79451985]
[1759846000991,0.052,123420.0,123410.0,1.89451985]
[1759846001478,0.052,123420.0,123410.0,1.90251985]
[1759846001479,0.051,123420.0,123410.0,1.90251985]
[1759846001693,0.05,123420.0,123410.0,1.90151985]
[1759846001908,0.051,123420.0,123410.0,0.91163985]
[1759846002121,0.051,123420.0,123410.0,1.82019985]
[1759846002338,0.051,123420.0,123410.0,1.90435985]
[1759846002551,0.029,123420.0,123410.0,2.00435985]
[1759846002981,0.029,123420.0,123410.0,1.01163985]
[1759846003194,0.029,123420.0,123410.0,2.00331985]
[1759846003413,0.028,123420.0,123410.0,2.00131985]
[1759846003625,0.03,123420.0,123410.0,1.02463985]
[1759846003843,0.03,123420.0,123410.0,1.01363985]
[1759846004081,0.03,123420.0,123410.0,1.91523985]
[1759846004298,0.028,123420.0,123410.0,2.01023985]
[1759846004519,0.029,123420.0,123410.0,2.01623985]
[1759846004951,0.028,123420.0,123410.0,2.00123985]
[1759846005344,0.029,123420.0,123410.0,0.91963985]
[1759846005519,0.029,123420.0,123410.0,1.91223985]
[1759846005909,0.029,123420.0,123410.0,2.01223985]
[1759846006495,0.00028871,123440.0,123410.0,2.01223985]
[1759846006696,0.00028871,123440.0,123430.0,0.08312206]
[1759846006902,0.00028871,123440.0,123430.0,1.71314051]
[1759846007811,0.00028871,123440.0,123430.0,1.71514051]
[1759846008028,0.00128871,123440.0,123430.0,1.71714051]
[1759846008457,0.00128871,123440.0,123430.0,2.08393241]
[1759846008664,0.00128871,123440.0,123430.0,1.51245241]
[1759846008876,0.00128871,123440.0,123430.0,2.50469241]
[1759846009139,0.00128871,123440.0,123430.0,0.92875741]
[1759846009339,0.00128871,123440.0,123430.0,0.57047051]
[1759846009581,0.00128871,123440.0,123430.0,1.87049151]
[1759846009786,0.12329894,123450.0,123440.0,0.34]
[1759846009984,0.12329894,123450.0,123440.0,0.71649506]
[1759846010203,0.12349985,123450.0,123440.0,0.72476484]
[1759846010432,0.00020091,123450.0,123440.0,0.72476484]
[1759846011152,0.00120091,123450.0,123440.0,0.75691674]
[1759846014497,0.00120091,123450.0,123440.0,1.49617074]
[1759846014752,0.00120091,123450.0,123440.0,1.58033074]
[1759846014962,0.22498982,123450.0,123440.0,0.002]
[1759846015177,0.22498982,123450.0,123440.0,1.15728]
[1759846015400,0.22498982,123450.0,123440.0,0.65728]
[1759846015651,0.30236982,123450.0,123440.0,0.002]
[1759846015867,0.30236982,123450.0,123440.0,0.65728]
[1759846016746,0.27398982,123450.0,123440.0,0.65528]
[1759846017147,0.28298982,123450.0,123440.0,0.65628]
[1759846017574,0.27998982,123450.0,123440.0,0.65528]
[1759846017789,0.24020982,123450.0,123440.0,0.65528]
[1759846017988,0.21520982,123450.0,123440.0,0.65628]
[1759846018233,0.21920982,123450.0,123440.0,0.65628]
[1759846018450,0.05720091,123450.0,123440.0,0.73940206]
[1759846018672,0.05720091,123450.0,123440.0,1.73232317]
[1759846019340,0.05720091,123450.0,123440.0,1.73132317]
[1759846019341,0.05420091,123450.0,123440.0,1.73132317]
[1759846019550,0.82840091,123450.0,123440.0,1.73132317]
[1759846019767,0.83240091,123450.0,123440.0,1.73232317]
[1759846020242,0.82840091,123450.0,123440.0,1.73132317]
[1759846020485,0.82840091,123450.0,123440.0,1.73732317]
[1759846020743,0.82940091,123450.0,123440.0,1.8993452]
[1759846020959,0.82940091,123450.0,123440.0,1.9243452]
[1759846021811,0.78940091,123450.0,123440.0,1.9243452]
[1759846022017,0.77460362,123450.0,123440.0,1.9243452]
[1759846022242,0.77460362,123450.0,123440.0,1.8866215]
[1759846022665,0.77460362,123450.0,123440.0,2.0140615]
[1759846022878,0.77460362,123450.0,123440.0,2.0982215]
[1759846023518,0.77460362,123450.0,123440.0,2.0140615]
[1759846023733,0.77460362,123450.0,123440.0,2.0982215]
[1759846023950,0.77460362,123450.0,123440.0,1.1063415]
[1759846024151,0.77460362,123450.0,123440.0,2.0982215]
[1759846025192,0.77460362,123450.0,123440.0,2.0140615]
[1759846025410,0.77460362,123450.0,123440.0,2.0982215]
[1759846026861,0.77460362,123450.0,123440.0,1.1063415]
[1759846027116,0.94706253,123450.0,123440.0,1.01610327]
[1759846027306,0.94706253,123450.0,123440.0,1.14285627]
[1759846027506,0.94706253,123450.0,123440.0,0.99680206]
[1759846027709,0.96555253,123450.0,123440.0,1.08096206]
[1759846029124,1.01555253,123450.0,123440.0,1.08096206]
[1759846029333,0.99706253,123450.0,123440.0,1.08096206]
[1759846029544,0.99706253,123450.0,123440.0,0.08912206]
[1759846029750,1.07571253,123450.0,123440.0,0.66116]
[1759846029952,1.04716253,123450.0,123440.0,0.66116]
[1759846030369,1.03666253,123450.0,123440.0,0.66116]
[1759846030572,1.07571253,123450.0,123440.0,0.66116]
[1759846033967,1.00746253,123450.0,123440.0,0.66116]
[1759846034191,1.07571253,123450.0,123440.0,0.66116]
[1759846035102,0.99706253,123450.0,123440.0,0.66116]
[1759846035316,0.82460362,123450.0,123440.0,0.74428206]
[1759846035756,0.83505362,123450.0,123440.0,0.08912206]
[1759846035991,1.04716253,123450.0,123440.0,0.08912206]
[1759846036199,1.04716253,123450.0,123440.0,0.64948206]
[1759846036625,1.04616253,123450.0,123440.0,0.002]
[1759846036841,1.07471253,123450.0,123440.0,0.42084]
[1759846037023,1.07771253,123450.0,123440.0,0.4634]
[1759846037444,1.07571253,123450.0,123440.0,0.4634]
[1759846037664,1.07771253,123450.0,123440.0,0.4634]
[1759846038775,1.07671253,123450.0,123440.0,0.4604]
[1759846039002,1.07771253,123450.0,123440.0,0.4614]
[1759846039173,1.07771253,123450.0,123440.0,0.65624]
[1759846039174,2.0751869,123450.0,123440.0,0.65624]
[1759846039996,2.0751869,123450.0,123440.0,0.08516]
[1759846040193,2.0751869,123450.0,123440.0,0.31952]
[1759846040876,1.16083459,123450.0,123440.0,0.31952]
[1759846041674,2.0751869,123450.0,123440.0,0.31952]
[1759846044674,2.4151869,123450.0,123440.0,0.001]
[1759846044891,2.4151869,123450.0,123440.0,0.10228]
[1759846045533,2.4131869,123450.0,123440.0,0.10228]
[1759846045757,1.49783459,123450.0,123440.0,0.10128]
[1759846045975,2.4241869,123450.0,123440.0,0.10228]
[1759846046150,2.4241869,123450.0,123440.0,0.31952]
[1759846047484,1.50983459,123450.0,123440.0,0.31952]
[1759846047695,2.4241869,123450.0,123440.0,0.31952]
[1759846048957,2.5041837,123450.0,123440.0,0.31952]
[1759846049382,1.41637434,123440.0,123430.0,1e-08]
[1759846049596,1.4994964,123440.0,123430.0,0.31852001]
[1759846049786,1.5168064,123440.0,123430.0,0.31852001]
[1759846050031,1.5863264,123440.0,123430.0,0.31852001]
[1759846050681,1.5903264,123440.0,123430.0,0.31852001]
[1759846051553,1.5933264,123440.0,123430.0,0.31952001]
[1759846051766,0.16204829,123420.0,123410.0,0.10012155]
[1759846051949,1.24635266,123420.0,123410.0,0.18428155]
[1759846052313,1.24635266,123420.0,123410.0,0.18517324]
[1759846052709,1.24735266,123420.0,123410.0,0.42053324]
[1759846053373,0.33300035,123420.0,123410.0,0.42053324]
[1759846053575,1.24735266,123420.0,123410.0,0.42053324]
[1759846054920,1.27213681,123420.0,123410.0,0.42053324]
[1759846055048,1.00486899,123420.0,123410.0,0.42053324]
[1759846055698,0.33300035,123420.0,123410.0,0.42053324]
[1759846055926,1.34486899,123420.0,123410.0,0.42053324]
[1759846056146,1.34486899,123420.0,123410.0,0.10201324]
[1759846056356,1.47486579,123420.0,123410.0,0.42057324]
[1759846056581,1.47486579,123420.0,123390.0,0.3368]
[1759846056582,0.16207455,123400.0,123390.0,0.3368]
[1759846056781,0.16207455,123400.0,123360.0,0.337618]
[1759846056782,0.16211396,123370.0,123360.0,0.337618]
[1759846056995,0.19012396,123370.0,123360.0,0.42231696]
[1759846057233,0.20147396,123370.0,123360.0,0.42231696]
[1759846057463,0.21283396,123370.0,123360.0,0.42231696]
[1759846057674,0.24894396,123370.0,123360.0,0.42231696]
[1759846057885,0.24894396,123370.0,123360.0,0.65671696]
[1759846058661,0.9208126,123370.0,123360.0,0.42335696]
[1759846058895,0.9218126,123370.0,123360.0,0.65775696]
[1759846059525,0.24894396,123370.0,123360.0,0.65675696]
[1759846059769,0.9208126,123370.0,123360.0,0.65875696]
[1759846060083,0.9208126,123370.0,123360.0,0.65675696]
[1759846060232,0.9228126,123370.0,123360.0,0.65675696]
[1759846060922,0.9248126,123370.0,123360.0,0.65675696]
[1759846062065,1.00793466,123370.0,123360.0,0.65675696]
[1759846062301,1.08793146,123370.0,123360.0,0.65675696]
[1759846062549,1.42793146,123370.0,123360.0,0.32092245]
[1759846062753,1.44267773,123370.0,123360.0,0.32092245]
[1759846063420,0.1621271,123360.0,123350.0,1e-08]
[1759846063640,0.41154173,123360.0,123350.0,1e-08]
[1759846063875,0.50214025,123350.0,123340.0,0.0842933]
[1759846064094,0.50214025,123350.0,123290.0,0.42658078]
[1759846064095,0.16219284,123310.0,123300.0,0.68713]
[1759846064308,0.92304148,123310.0,123300.0,0.35025]
[1759846064529,0.25117284,123310.0,123300.0,0.77133]
[1759846064968,1.00616354,123310.0,123300.0,0.77137]
[1759846065245,1.00616354,123310.0,123300.0,1.00577]
[1759846065457,1.34666273,123310.0,123300.0,1.00577]
[1759846065674,1.41066987,123310.0,123300.0,1.00677]
[1759846066110,1.47958275,123310.0,123300.0,1e-08]
[1759846066321,0.50221915,123290.0,123270.0,0.09541618]
[1759846066549,1.25720985,123290.0,123270.0,0.09541618]
[1759846066747,1.30342985,123290.0,123270.0,0.09541618]
[1759846067024,0.22290915,123290.0,123270.0,0.09541618]
[1759846067251,0.30603121,123290.0,123270.0,0.09541618]
[1759846067479,0.92306779,123290.0,123270.0,0.09541618]
[1759846067718,0.92306779,123290.0,123280.0,0.23944]
[1759846068151,0.92506779,123290.0,123280.0,0.23944]
[1759846068381,0.25319915,123290.0,123280.0,0.23944]
[1759846068921,0.97506779,123290.0,123280.0,0.23944]
[1759846069122,0.30319915,123290.0,123280.0,0.23944]
[1759846069289,0.97506779,123290.0,123280.0,0.23944]
[1759846069528,0.97506779,123290.0,123280.0,0.24105016]
[1759846069969,0.97506779,123290.0,123280.0,0.24109016]
[1759846070134,0.97506779,123290.0,123280.0,0.32533016]
[1759846070356,1.42202165,123290.0,123280.0,0.32533016]
[1759846070793,1.39818985,123290.0,123280.0,0.32533016]
[1759846071517,0.72632121,123290.0,123280.0,0.32533016]
[1759846071724,1.39818985,123290.0,123280.0,0.32533016]
[1759846071928,0.72632121,123290.0,123280.0,0.32533016]
[1759846072142,1.39818985,123290.0,123280.0,0.32533016]
[1759846072353,1.4462763,123290.0,123280.0,0.00661016]
[1759846072564,1.4462763,123290.0,123280.0,0.32533016]
[1759846072975,0.77440766,123290.0,123280.0,0.32533016]
[1759846073187,1.4462763,123290.0,123280.0,0.32533016]
[1759846073398,1.4744282,123290.0,123280.0,0.24113016]
[1759846073788,1.39818985,123290.0,123280.0,0.24113016]
[1759846074320,1.39618985,123290.0,123280.0,0.24113016]
[1759846074561,1.40018985,123290.0,123280.0,0.24113016]
[1759846074989,1.40018985,123290.0,123260.0,0.0002]
[1759846075212,0.5,123180.0,123170.0,0.0301519]
[1759846075423,0.5,123180.0,123170.0,1.77855427]
[1759846075647,0.5,123180.0,123170.0,1.79455934]
[1759846075860,0.47568606,123180.0,123170.0,1.81890802]
[1759846076077,0.45137212,123180.0,123170.0,1.81890802]
[1759846076319,0.025,123260.0,123230.0,0.0301519]
[1759846076572,0.06536749,123250.0,123240.0,1.21744906]
[1759846076798,0.06536749,123250.0,123240.0,1.22547106]
[1759846077238,0.06536749,123270.0,123240.0,1.22547106]
[1759846077440,0.06536749,123270.0,123250.0,1.394926]
[1759846077620,0.06586637,123270.0,123260.0,0.31768206]
[1759846077819,0.25311184,123270.0,123260.0,0.150944]
[1759846078031,0.26122411,123270.0,123240.0,0.5]
[1759846078252,0.16225864,123260.0,123250.0,0.09106826]
[1759846078481,0.16225864,123260.0,123250.0,0.73912206]
[1759846078722,0.19537157,123260.0,123230.0,0.02434295]
[1759846078963,0.19537157,123260.0,123240.0,1.34575006]
[1759846079154,0.18725864,123260.0,123250.0,0.866245]
[1759846079404,0.02549888,123270.0,123250.0,0.88466706]
[1759846079624,0.18874435,123270.0,123260.0,0.01622586]
[1759846079844,0.02649888,123270.0,123260.0,0.01622586]
[1759846080096,0.00049888,123270.0,123260.0,0.09934792]
[1759846080359,0.00049888,123270.0,123260.0,1.23558806]
[1759846080602,0.00049888,123270.0,123260.0,1.60573996]
[1759846081567,0.00149888,123270.0,123260.0,1.60573996]
[1759846081812,0.00149888,123270.0,123260.0,1.52179196]
[1759846082022,0.00149888,123270.0,123260.0,1.43315296]
[1759846082232,0.00149888,123270.0,123260.0,2.42631296]
[1759846082445,0.00149888,123270.0,123260.0,2.34203296]
[1759846082661,0.00949888,123270.0,123260.0,2.42631296]
[1759846082889,0.00949888,123270.0,123260.0,1.44975506]
[1759846083123,0.16225864,123260.0,123250.0,0.33716]
[1759846083357,0.16225864,123260.0,123250.0,0.08312206]
[1759846083572,0.16227335,123250.0,123230.0,0.50814603]
[1759846083797,0.16227335,123250.0,123240.0,0.81768206]
[1759846084050,0.16227335,123250.0,123240.0,0.73912206]
[1759846084335,0.1622718,123250.0,123240.0,0.73912206]
[1759846084550,0.1622718,123250.0,123220.0,0.50507234]
[1759846084551,0.16229814,123230.0,123220.0,0.50507234]
[1759846084771,0.16229814,123230.0,123220.0,1.2441944]
[1759846085000,0.16229814,123230.0,123220.0,1.5841944]
[1759846085225,0.187289,123240.0,123220.0,1.2441944]
[1759846085464,0.16229814,123230.0,123220.0,1.0924744]
[1759846085686,0.00049857,123230.0,123220.0,1.4614634]
[1759846085908,0.00049857,123230.0,123220.0,0.8083034]
[1759846086374,0.00649857,123230.0,123220.0,0.8083034]
[1759846086609,0.00649857,123230.0,123220.0,1.8316153]
[1759846086834,0.00649857,123230.0,123220.0,1.8328239]
[1759846087063,0.00649857,123230.0,123220.0,1.99513521]
[1759846087291,0.00649857,123230.0,123220.0,1.98721521]
[1759846087733,0.00749857,123230.0,123220.0,1.98721521]
[1759846088244,0.00749857,123230.0,123220.0,1.96506331]
[1759846088245,0.00149857,123230.0,123220.0,1.96506331]
[1759846088459,0.00049857,123230.0,123220.0,1.99521521]
[1759846088677,0.00249857,123230.0,123220.0,1.8329039]
[1759846088886,0.00249857,123230.0,123220.0,1.7486239]
[1759846089103,0.00249857,123230.0,123220.0,0.8426639]
[1759846089430,0.13287127,123260.0,123220.0,1.8359039]
[1759846089630,0.13287127,123260.0,123240.0,0.3701519]
[1759846089845,0.13287127,123260.0,123250.0,0.40196206]
[1759846090060,0.16228555,123240.0,123230.0,0.3372]
[1759846090267,0.16228555,123240.0,123230.0,0.29620306]
[1759846090470,0.16228555,123240.0,123230.0,0.95224306]
[1759846090683,0.16228555,123240.0,123230.0,0.50460206]
[1759846090896,0.26076358,123250.0,123230.0,0.73916206]
[1759846091313,0.16228497,123240.0,123230.0,0.08412206]
[1759846091531,0.18828497,123240.0,123230.0,0.65704]
[1759846092010,0.18828497,123240.0,123220.0,0.00831382]
[1759846092011,0.18729814,123230.0,123220.0,0.33732148]
[1759846092224,0.26720814,123230.0,123220.0,0.23468148]
[1759846092440,0.29469814,123230.0,123220.0,0.00012148]
[1759846092656,0.93026907,123230.0,123220.0,0.09240148]
[1759846092865,0.43826557,123230.0,123220.0,0.09228148]
[1759846093079,0.39256721,123230.0,123220.0,0.09228148]
[1759846093293,0.87433447,123230.0,123220.0,0.00012148]
[1759846093504,0.39258396,123230.0,123220.0,0.23504148]
[1759846093718,0.47058076,123230.0,123220.0,0.23504148]
[1759846093927,0.25480814,123230.0,123220.0,0.23504148]
[1759846094139,0.23992814,123230.0,123220.0,0.23504148]
[1759846094354,0.19329814,123230.0,123220.0,0.65656148]
[1759846094557,0.19829814,123230.0,123220.0,0.65756148]
[1759846095222,0.89557071,123230.0,123220.0,0.42264148]
[1759846095425,0.3808202,123230.0,123220.0,0.65764148]
[1759846095647,0.25941814,123230.0,123220.0,0.65785008]
[1759846095873,0.26541814,123230.0,123220.0,0.65785008]
[1759846096051,0.25941814,123230.0,123220.0,0.65785008]
[1759846096307,0.26741814,123230.0,123220.0,0.65785008]
[1759846096512,0.26741814,123230.0,123220.0,0.00133008]
[1759846096724,0.26741814,123230.0,123220.0,0.65797008]
[1759846096948,0.30069814,123230.0,123220.0,0.43273008]
[1759846097200,0.30069814,123230.0,123160.0,0.1]
[1759846097201,0.49548605,123230.0,123160.0,0.1]
[1759846097406,0.16235168,123190.0,123170.0,1.25103178]
[1759846097624,0.16177695,123170.0,123160.0,0.00049857]
[1759846097855,0.1858748,123170.0,123160.0,0.00049857]
[1759846098065,0.2072248,123170.0,123160.0,0.65733857]
[1759846098249,0.1858748,123170.0,123160.0,0.65733857]
[1759846098457,0.18646239,123180.0,123160.0,0.74046063]
[1759846098672,0.18646256,123180.0,123160.0,0.74046063]
[1759846098886,0.18646256,123180.0,123170.0,1.023574]
[1759846099100,0.02409785,123190.0,123170.0,1.00847706]
[1759846099309,0.18644904,123190.0,123180.0,0.2654319]
[1759846099528,0.18644904,123190.0,123170.0,0.08312206]
[1759846099529,0.18647505,123170.0,123160.0,0.00649857]
[1759846099775,0.18647505,123170.0,123160.0,0.66141857]
[1759846099968,0.18646187,123180.0,123170.0,0.34]
[1759846100402,0.1623772,123170.0,123160.0,0.77469253]
[1759846100619,0.1623772,123170.0,123160.0,1.08832753]
[1759846100823,0.1623772,123170.0,123160.0,1.09132753]
[1759846101274,0.1623772,123170.0,123160.0,0.88666753]
[1759846101489,0.1623772,123170.0,123160.0,0.11377253]
[1759846101709,0.1633772,123170.0,123160.0,1.25266063]
[1759846101976,0.2133772,123170.0,123160.0,0.09562063]
[1759846102183,0.2133772,123170.0,123160.0,1.25266063]
[1759846102411,0.2133772,123170.0,123160.0,0.75266063]
[1759846102630,0.2133772,123170.0,123160.0,0.09562063]
[1759846102875,0.3207772,123170.0,123160.0,0.59562063]
[1759846103097,0.3207772,123170.0,123160.0,0.66949857]
[1759846103098,0.34487505,123170.0,123160.0,0.66949857]
[1759846103344,0.31159505,123170.0,123160.0,0.66949857]
[1759846103613,0.34487505,123170.0,123160.0,0.01249857]
[1759846103828,0.34487505,123170.0,123160.0,0.66985857]
[1759846104036,0.34487505,123170.0,123160.0,0.01249857]
[1759846104289,0.31059505,123170.0,123160.0,0.66677857]
[1759846104517,0.34387505,123170.0,123160.0,0.43117857]
[1759846104741,0.34387505,123170.0,123160.0,0.00049857]
[1759846104975,0.34587505,123170.0,123160.0,0.32161857]
[1759846105212,0.42899711,123170.0,123160.0,0.00249857]
[1759846105442,0.47782102,123170.0,123160.0,0.00149857]
[1759846105684,0.81782102,123170.0,123160.0,1e-08]
[1759846105904,0.82182102,123170.0,123160.0,0.001]
[1759846106147,0.82182102,123170.0,123160.0,0.0262]
[1759846106364,0.82482102,123170.0,123160.0,1e-08]
[1759846106578,1.33157153,123170.0,123160.0,1e-08]
[1759846106794,0.18651461,123140.0,123130.0,0.1049872]
[1759846107052,0.18447374,123140.0,123130.0,0.21481675]
[1759846107248,0.3222258,123140.0,123130.0,0.40077675]
[1759846107492,0.88174631,123140.0,123130.0,1e-08]
[1759846107707,0.1865278,123130.0,123120.0,0.18432]
[1759846107923,0.37719928,123130.0,123120.0,0.18432]
[1759846108151,0.35310143,123130.0,123120.0,0.18432]
[1759846108390,0.37719928,123130.0,123120.0,0.18432]
[1759846108845,0.37719928,123130.0,123120.0,0.42112]
[1759846109098,0.38319928,123130.0,123120.0,0.1]
[1759846109334,0.90399766,123130.0,123120.0,0.33688]
[1759846109568,0.39724715,123130.0,123120.0,0.33889646]
[1759846110078,0.18654099,123120.0,123110.0,0.0002]
[1759846110316,0.36960521,123120.0,123110.0,0.2372]
[1759846110545,0.72017305,123120.0,123110.0,0.32168]
[1759846110773,0.72017305,123120.0,123110.0,0.0002]
[1759846111017,0.72017305,123120.0,123110.0,0.2374]
[1759846111250,0.18655418,123110.0,123100.0,0.44417]
[1759846111484,0.35844624,123110.0,123100.0,0.34208045]
[1759846111705,0.38018624,123110.0,123100.0,0.34208045]
[1759846112189,0.38018624,123110.0,123060.0,1.23976]
[1759846112190,0.18660699,123070.0,123060.0,1.23976]
[1759846112427,0.72023905,123070.0,123060.0,1.3242]
[1759846112646,0.38023905,123070.0,123060.0,1.3242]
[1759846112876,0.38023905,123070.0,123060.0,1.23988]
[1759846113099,0.38023905,123070.0,123060.0,1.0]
[1759846113331,0.38023905,123070.0,123060.0,1.23984]
[1759846113571,0.2485863,123070.0,123060.0,1.32416]
[1759846113796,0.1867563,123070.0,123060.0,1.4041568]
[1759846114013,0.2972663,123070.0,123060.0,1.0]
[1759846114441,0.2624663,123070.0,123060.0,1.66188]
[1759846114656,0.2624663,123070.0,123060.0,1.7418768]
[1759846114869,0.2664663,123070.0,123060.0,1.0809968]
[1759846115082,0.2664663,123070.0,123060.0,1.7430768]
[1759846115732,0.2395863,123070.0,123060.0,1.7431168]
[1759846115947,0.2395863,123070.0,123060.0,1.66312]
[1759846116191,0.2534663,123070.0,123060.0,1.00221096]
[1759846116424,0.3012663,123070.0,123060.0,1.42421096]
[1759846116621,0.3012663,123070.0,123060.0,1.66421096]
[1759846116838,0.3012663,123070.0,123060.0,1.00221096]
[1759846116839,0.38438836,123070.0,123060.0,1.00221096]
[1759846117058,0.43076572,123070.0,123060.0,1.00221096]
[1759846117302,0.38438836,123070.0,123060.0,1.32677096]
[1759846117727,0.3012663,123070.0,123060.0,1.32677096]
[1759846117943,0.3012663,123070.0,123060.0,1.83535368]
[1759846118169,0.3012663,123070.0,123060.0,1.65731982]
[1759846118170,0.2664663,123070.0,123060.0,1.65731982]
[1759846118381,0.30811065,123070.0,123060.0,1.65731982]
[1759846118601,0.2664663,123070.0,123060.0,1.1487371]
[1759846118841,0.2664663,123070.0,123060.0,1.5688511]
[1759846119105,0.3025363,123070.0,123060.0,1.9064911]
[1759846119326,0.3025363,123070.0,123060.0,1.5688511]
[1759846119542,0.38565836,123070.0,123060.0,0.8241771]
[1759846119767,0.44047493,123070.0,123060.0,1.1486171]
[1759846120203,0.38565836,123070.0,123060.0,0.8241771]
[1759846121092,0.38165836,123070.0,123060.0,1.0630971]
[1759846121319,0.72165836,123070.0,123060.0,0.38479531]
[1759846121548,0.78007493,123070.0,123060.0,0.17238378]
[1759846121756,0.50252234,123060.0,123050.0,0.01142836]
[1759846121971,0.5987344,123060.0,123050.0,0.09582836]
[1759846122224,0.6987744,123060.0,123050.0,0.09582836]
[1759846122437,0.16254876,123040.0,123030.0,0.005]
[1759846122744,0.16254876,123040.0,123000.0,5.53651516]
[1759846122745,0.64227825,123040.0,123000.0,5.53651516]
[1759846123001,0.21052625,123010.0,123000.0,5.47508066]
[1759846123239,0.63981625,123010.0,123000.0,6.54771466]
[1759846123458,0.63981625,123010.0,123000.0,5.47508066]
[1759846123667,0.66348656,123010.0,123000.0,5.47508066]
[1759846123887,0.77084429,123010.0,123000.0,5.71880066]
[1759846124097,0.38293831,123010.0,123000.0,6.54791466]
[1759846124311,0.38308748,123010.0,123000.0,6.54791466]
[1759846124526,0.02424702,123010.0,123000.0,6.57806656]
[1759846124743,0.02424702,123010.0,123000.0,6.65806336]
[1759846124956,0.00969231,123020.0,123000.0,7.53635542]
[1759846125173,0.00996984,123050.0,123010.0,2.50521735]
[1759846125405,0.00996984,123050.0,123040.0,0.8592659]
[1759846125621,0.17250539,123050.0,123040.0,0.4847279]
[1759846125838,0.00027753,123050.0,123040.0,1.2294019]
[1759846126056,0.00027753,123050.0,123040.0,1.31252396]
[1759846126276,0.00027753,123050.0,123040.0,2.47719476]
[1759846126546,0.15250327,123100.0,123050.0,0.0301519]
[1759846126889,0.17062096,123080.0,123070.0,0.08444]
[1759846127134,0.16253555,123050.0,123010.0,0.3701519]
[1759846127384,0.17063459,123070.0,123020.0,1.35478]
[1759846127626,0.16250973,123070.0,123050.0,0.0301519]
[1759846127911,0.16250973,123070.0,123060.0,0.2746319]
[1759846128161,0.17062096,123080.0,123070.0,0.0301519]
[1759846128408,0.00015009,123070.0,123060.0,2.1862199]
[1759846128640,0.00015009,123070.0,123060.0,2.0417359]
[1759846128847,0.16253555,123050.0,123040.0,0.00020192]
[1759846129091,0.16253555,123050.0,123040.0,0.41312398]
[1759846129307,0.16253555,123050.0,123040.0,0.48821638]
[1759846129542,0.16253555,123050.0,123040.0,1.07467592]
[1759846129769,0.2157536,123060.0,123040.0,0.33000192]
[1759846129770,0.1625336,123060.0,123040.0,0.33000192]
[1759846129997,0.17180914,123070.0,123050.0,0.79107945]
[1759846130224,0.16253555,123050.0,123040.0,0.33800192]
[1759846130513,0.16253555,123050.0,123040.0,2.02464892]
[1759846130759,0.16252234,123060.0,123050.0,0.0301519]
[1759846131004,0.16253555,123050.0,123040.0,0.45127588]
[1759846131256,0.16253555,123050.0,123040.0,0.74300141]
[1759846131482,0.23959555,123050.0,123040.0,1.08267592]
[1759846131730,0.27866555,123050.0,123040.0,0.74987592]
[1759846132015,0.16254876,123040.0,123030.0,0.3378]
[1759846132287,0.1525884,123010.0,123000.0,5.81288066]
[1759846132543,0.2657184,123010.0,123000.0,5.47508066]
[1759846132748,0.2296484,123010.0,123000.0,6.96739146]
[1759846133421,0.2296484,123010.0,123000.0,6.46511466]
[1759846133697,0.2296484,123010.0,123000.0,5.47557517]
[1759846133903,0.2657184,123010.0,123000.0,5.47557517]
[1759846134133,0.34884046,123010.0,123000.0,5.80537517]
[1759846134416,0.39998316,123010.0,123000.0,5.80537517]
[1759846134626,0.39998316,123010.0,123000.0,5.72697517]
[1759846134860,0.34984046,123010.0,123000.0,5.72697517]
[1759846135089,0.68984046,123010.0,123000.0,5.72097517]
[1759846135590,0.69084046,123010.0,123000.0,5.72097517]
[1759846135811,0.69684046,123010.0,123000.0,5.35467846]
[1759846136055,0.77683726,123010.0,123000.0,5.35467846]